[Event "*** Titled Tuesday Blitz"]
[Site "Chess.com"]
[Date "2020.05.19"]
[Round "2"]
[White "BillieKimbah"]
[Black "csati17"]
[Result "0-1"]
[WhiteElo "2848"]
[BlackElo "2557"]
[TimeControl "180+1"]
[EndTime "12:16:39 PDT"]
[Termination "csati17 won by resignation"]

1. c4 {[%clk 0:03:00.9]} 1... Nf6 {[%clk 0:02:59.8]} 2. Nf3 {[%clk 0:02:59.8]}
2... e6 {[%clk 0:02:59.6]} 3. b3 {[%clk 0:02:59.4]} 3... d5 {[%clk 0:03:00.5]}
4. Bb2 {[%clk 0:02:59.5]} 4... Be7 {[%clk 0:03:01.1]} 5. e3 {[%clk 0:02:58.9]}
5... O-O {[%clk 0:03:01.3]} 6. Nc3 {[%clk 0:02:58.8]} 6... b6 {[%clk 0:03:01.6]}
7. cxd5 {[%clk 0:02:57.2]} 7... exd5 {[%clk 0:03:02.5]} 8. d4 {[%clk 0:02:56.7]}
8... c6 {[%clk 0:03:02]} 9. g3 {[%clk 0:02:56]} 9... Bf5 {[%clk 0:02:56.2]} 10.
Bg2 {[%clk 0:02:55.1]} 10... Nbd7 {[%clk 0:02:56.5]} 11. O-O {[%clk 0:02:54.1]}
11... Rc8 {[%clk 0:02:53.4]} 12. Rc1 {[%clk 0:02:49.7]} 12... Re8 {[%clk
0:02:52.7]} 13. Nh4 {[%clk 0:02:40.3]} 13... Be6 {[%clk 0:02:46.4]} 14. Qc2
{[%clk 0:02:39.9]} 14... Bf8 {[%clk 0:02:41.8]} 15. Rfd1 {[%clk 0:02:39.3]}
15... Bg4 {[%clk 0:02:34.6]} 16. Rd2 {[%clk 0:02:36.9]} 16... Bh5 {[%clk
0:02:32.4]} 17. h3 {[%clk 0:02:19.9]} 17... Bg6 {[%clk 0:01:51.8]} 18. Nxg6
{[%clk 0:02:19.3]} 18... hxg6 {[%clk 0:01:52.7]} 19. h4 {[%clk 0:02:15.2]} 19...
Bb4 {[%clk 0:01:48.8]} 20. Rdd1 {[%clk 0:02:09.4]} 20... Bxc3 {[%clk 0:01:48.4]}
21. Bxc3 {[%clk 0:02:08.6]} 21... Ne4 {[%clk 0:01:49.3]} 22. Be1 {[%clk
0:02:08.2]} 22... f5 {[%clk 0:01:43.7]} 23. a4 {[%clk 0:01:58.5]} 23... g5
{[%clk 0:01:41.4]} 24. f3 {[%clk 0:01:45]} 24... Nd6 {[%clk 0:01:40]} 25. hxg5
{[%clk 0:01:45.3]} 25... Qxg5 {[%clk 0:01:40.9]} 26. Bf2 {[%clk 0:01:45.1]}
26... Re6 {[%clk 0:01:23.2]} 27. Qd3 {[%clk 0:01:41.2]} 27... Nf6 {[%clk
0:01:12]} 28. Bh3 {[%clk 0:01:20.3]} 28... Nh5 {[%clk 0:01:09.8]} 29. Kg2 {[%clk
0:01:19.2]} 29... Nxg3 {[%clk 0:01:07.7]} 30. f4 {[%clk 0:01:17.7]} 30... Qh4
{[%clk 0:01:06.6]} 31. Rh1 {[%clk 0:01:07.5]} 31... Rg6 {[%clk 0:00:56.5]} 32.
Bxf5 {[%clk 0:01:07.3]} 32... Ngxf5+ {[%clk 0:00:55.3]} 0-1

[Event "*** Titled Tuesday Blitz"]
[Site "Chess.com"]
[Date "2020.05.19"]
[Round "2"]
[White "Cambek64"]
[Black "Mikhail_Biryukov"]
[Result "0-1"]
[WhiteElo "2322"]
[BlackElo "2646"]
[TimeControl "180+1"]
[EndTime "12:16:40 PDT"]
[Termination "Mikhail_Biryukov won by resignation"]

1. d4 {[%clk 0:02:52.5]} 1... Nf6 {[%clk 0:02:58.5]} 2. c4 {[%clk 0:02:52]} 2...
e6 {[%clk 0:02:58.5]} 3. Nc3 {[%clk 0:02:51.7]} 3... d5 {[%clk 0:02:56.4]} 4.
Bg5 {[%clk 0:02:50]} 4... Bb4 {[%clk 0:02:55.9]} 5. e3 {[%clk 0:02:48.6]} 5...
h6 {[%clk 0:02:54.4]} 6. Bxf6 {[%clk 0:02:47.3]} 6... Qxf6 {[%clk 0:02:54.4]} 7.
Qa4+ {[%clk 0:02:47.7]} 7... Nc6 {[%clk 0:02:53.7]} 8. Rc1 {[%clk 0:02:46.7]}
8... O-O {[%clk 0:02:52]} 9. Nf3 {[%clk 0:02:43.3]} 9... dxc4 {[%clk 0:02:52]}
10. Bxc4 {[%clk 0:02:41.6]} 10... Bd7 {[%clk 0:02:48.8]} 11. Qc2 {[%clk
0:02:37.9]} 11... e5 {[%clk 0:02:43.3]} 12. dxe5 {[%clk 0:02:28.3]} 12... Nxe5
{[%clk 0:02:43]} 13. Nxe5 {[%clk 0:02:25.2]} 13... Qxe5 {[%clk 0:02:43.9]} 14.
O-O {[%clk 0:02:23.7]} 14... Bd6 {[%clk 0:02:43.3]} 15. g3 {[%clk 0:02:21.4]}
15... Bg4 {[%clk 0:02:38.7]} 16. Bd5 {[%clk 0:02:18.4]} 16... c6 {[%clk
0:02:37.4]} 17. Bg2 {[%clk 0:02:16.8]} 17... h5 {[%clk 0:02:33.6]} 18. Qe4
{[%clk 0:02:15]} 18... Rad8 {[%clk 0:02:26.6]} 19. Qxe5 {[%clk 0:02:09.2]} 19...
Bxe5 {[%clk 0:02:26.5]} 20. h3 {[%clk 0:02:05.9]} 20... Be6 {[%clk 0:02:25.8]}
21. Rfd1 {[%clk 0:02:01.3]} 21... Bxc3 {[%clk 0:02:23.1]} 22. bxc3 {[%clk
0:01:58.6]} 22... Bxa2 {[%clk 0:02:23.1]} 23. Ra1 {[%clk 0:01:48.7]} 23... Rxd1+
{[%clk 0:02:21.8]} 24. Rxd1 {[%clk 0:01:47.9]} 24... Be6 {[%clk 0:02:22.6]} 25.
Ra1 {[%clk 0:01:45]} 25... a6 {[%clk 0:02:15.2]} 26. Ra5 {[%clk 0:01:43.6]}
26... Rd8 {[%clk 0:02:14.5]} 27. Rxh5 {[%clk 0:01:39.8]} 27... Rd1+ {[%clk
0:02:08.4]} 28. Kh2 {[%clk 0:01:38]} 28... Bd5 {[%clk 0:01:59.9]} 29. Bxd5
{[%clk 0:01:35.4]} 29... Rxd5 {[%clk 0:01:59.5]} 30. Rh4 {[%clk 0:01:35.3]}
30... b5 {[%clk 0:01:56.6]} 31. Kg2 {[%clk 0:01:21.6]} 31... a5 {[%clk
0:01:56.2]} 32. c4 {[%clk 0:01:17.7]} 32... Rd8 {[%clk 0:01:51.5]} 33. Kf3
{[%clk 0:01:11.5]} 33... b4 {[%clk 0:01:50.5]} 34. Rh5 {[%clk 0:01:09.2]} 34...
a4 {[%clk 0:01:46.2]} 35. Ra5 {[%clk 0:01:06.4]} 35... a3 {[%clk 0:01:46.4]} 36.
c5 {[%clk 0:01:04.7]} 36... Rd2 {[%clk 0:01:43.1]} 37. Ra6 {[%clk 0:00:54.6]}
37... a2 {[%clk 0:01:42.9]} 0-1

[Event "*** Titled Tuesday Blitz"]
[Site "Chess.com"]
[Date "2020.05.19"]
[Round "2"]
[White "GjakanTati"]
[Black "Er_is_geen_hoop_meer"]
[Result "0-1"]
[WhiteElo "2629"]
[BlackElo "2412"]
[TimeControl "180+1"]
[EndTime "12:16:41 PDT"]
[Termination "Er_is_geen_hoop_meer won by resignation"]

1. d4 {[%clk 0:03:00]} 1... e5 {[%clk 0:02:59]} 2. dxe5 {[%clk 0:02:59.7]} 2...
d6 {[%clk 0:02:59.4]} 3. exd6 {[%clk 0:02:59.5]} 3... Bxd6 {[%clk 0:03:00.3]} 4.
Nf3 {[%clk 0:02:59.5]} 4... Bg4 {[%clk 0:03:00.7]} 5. g3 {[%clk 0:02:58.6]} 5...
Qe7 {[%clk 0:03:00.6]} 6. Bg2 {[%clk 0:02:56.8]} 6... Nc6 {[%clk 0:03:01.1]} 7.
Nc3 {[%clk 0:02:50.4]} 7... O-O-O {[%clk 0:03:00.7]} 8. Nd5 {[%clk 0:02:49]}
8... Qe6 {[%clk 0:02:59.3]} 9. c4 {[%clk 0:02:38.5]} 9... Bxf3 {[%clk
0:02:40.5]} 10. Bxf3 {[%clk 0:02:35.7]} 10... Ne5 {[%clk 0:02:41.4]} 11. Bg2
{[%clk 0:02:12.3]} 11... c6 {[%clk 0:02:35.9]} 12. Nc3 {[%clk 0:01:46]} 12...
Bc5 {[%clk 0:02:35.3]} 13. Qxd8+ {[%clk 0:01:31.4]} 13... Kxd8 {[%clk
0:02:34.2]} 14. O-O {[%clk 0:01:32.3]} 14... Nxc4 {[%clk 0:02:28.6]} 15. Bf4
{[%clk 0:01:29.1]} 15... Nf6 {[%clk 0:02:24.7]} 16. Rac1 {[%clk 0:01:22.9]}
16... Ke7 {[%clk 0:02:18.6]} 17. b3 {[%clk 0:01:19.6]} 17... Ne5 {[%clk
0:02:04.6]} 18. Nb5 {[%clk 0:01:13.6]} 18... Bb6 {[%clk 0:01:37.7]} 19. Nc3
{[%clk 0:01:03]} 19... Nd5 {[%clk 0:01:36.2]} 20. Nxd5+ {[%clk 0:01:00.8]} 20...
cxd5 {[%clk 0:01:37.1]} 21. Rfd1 {[%clk 0:01:00.7]} 21... Rd8 {[%clk 0:01:36.5]}
22. Bd2 {[%clk 0:00:57.8]} 22... a5 {[%clk 0:01:31.2]} 23. b4 {[%clk 0:00:55.4]}
23... Ng4 {[%clk 0:01:30.2]} 24. e3 {[%clk 0:00:53.1]} 24... a4 {[%clk
0:01:29.6]} 25. b5 {[%clk 0:00:52.8]} 25... Kf8 {[%clk 0:01:26.7]} 26. Bb4+
{[%clk 0:00:52]} 26... Kg8 {[%clk 0:01:26.9]} 27. Bf3 {[%clk 0:00:44.9]} 27...
Nxf2 {[%clk 0:01:24.7]} 28. Kxf2 {[%clk 0:00:43.5]} 28... Qxe3+ {[%clk
0:01:24.6]} 29. Kg2 {[%clk 0:00:42.3]} 29... Qf2+ {[%clk 0:01:24.7]} 30. Kh3
{[%clk 0:00:42.4]} 30... Qxf3 {[%clk 0:01:24.9]} 31. Rd2 {[%clk 0:00:39.5]}
31... Be3 {[%clk 0:01:23.1]} 0-1

[Event "*** Titled Tuesday Blitz"]
[Site "Chess.com"]
[Date "2020.05.19"]
[Round "2"]
[White "mshuaau0"]
[Black "CaspiIsrael"]
[Result "0-1"]
[WhiteElo "2252"]
[BlackElo "2606"]
[TimeControl "180+1"]
[EndTime "12:16:41 PDT"]
[Termination "CaspiIsrael won by resignation"]

1. e4 {[%clk 0:03:00.9]} 1... d5 {[%clk 0:02:59.4]} 2. exd5 {[%clk 0:03:00.4]}
2... Qxd5 {[%clk 0:03:00.3]} 3. Nc3 {[%clk 0:02:58.2]} 3... Qd6 {[%clk
0:03:00.4]} 4. Nf3 {[%clk 0:02:57.9]} 4... Nf6 {[%clk 0:03:00.8]} 5. Bc4 {[%clk
0:02:55.2]} 5... a6 {[%clk 0:03:00.8]} 6. O-O {[%clk 0:02:53.6]} 6... b5 {[%clk
0:02:57.8]} 7. Bb3 {[%clk 0:02:53.5]} 7... e6 {[%clk 0:02:56.4]} 8. d3 {[%clk
0:02:51.1]} 8... Be7 {[%clk 0:02:52.5]} 9. Ne4 {[%clk 0:02:41.4]} 9... Nxe4
{[%clk 0:02:33.7]} 10. dxe4 {[%clk 0:02:40.3]} 10... Qxd1 {[%clk 0:02:34.6]} 11.
Rxd1 {[%clk 0:02:39.5]} 11... Bb7 {[%clk 0:02:35.5]} 12. e5 {[%clk 0:02:25.3]}
12... Nd7 {[%clk 0:02:21.2]} 13. Bf4 {[%clk 0:02:23.6]} 13... g5 {[%clk
0:02:07.6]} 14. Bg3 {[%clk 0:02:11.1]} 14... h5 {[%clk 0:02:06.9]} 15. h3 {[%clk
0:02:10]} 15... g4 {[%clk 0:01:50.8]} 16. hxg4 {[%clk 0:01:58.2]} 16... hxg4
{[%clk 0:01:51.7]} 17. Nh2 {[%clk 0:01:57.7]} 17... Rg8 {[%clk 0:01:51.3]} 18.
Rd4 {[%clk 0:01:56.2]} 18... c5 {[%clk 0:01:47.6]} 19. Rxd7 {[%clk 0:01:43.1]}
19... Kxd7 {[%clk 0:01:47.2]} 20. c3 {[%clk 0:01:37.9]} 20... Be4 {[%clk
0:01:41]} 21. Bd1 {[%clk 0:01:34.7]} 21... Bf5 {[%clk 0:01:40.6]} 22. Nf1 {[%clk
0:01:34.7]} 22... Bg5 {[%clk 0:01:38.4]} 23. Be2 {[%clk 0:01:29.5]} 23... Kc6
{[%clk 0:01:37.9]} 24. Ne3 {[%clk 0:01:04]} 24... Bxe3 {[%clk 0:01:35.5]} 25.
fxe3 {[%clk 0:01:04.9]} 25... Rad8 {[%clk 0:01:32.8]} 26. Be1 {[%clk 0:01:00.4]}
26... Be4 {[%clk 0:01:28.1]} 27. g3 {[%clk 0:00:58]} 27... Rh8 {[%clk
0:01:15.4]} 28. Bxg4 {[%clk 0:00:56.5]} 28... Rh1+ {[%clk 0:01:13.4]} 29. Kf2
{[%clk 0:00:56.6]} 29... Rdh8 {[%clk 0:01:13.2]} 30. Ke2 {[%clk 0:00:46.9]}
30... R8h2+ {[%clk 0:01:12.3]} 31. Kd1 {[%clk 0:00:46.8]} 31... Bc2+ {[%clk
0:01:11.9]} 0-1

[Event "*** Titled Tuesday Blitz"]
[Site "Chess.com"]
[Date "2020.05.19"]
[Round "2"]
[White "RenanSoares1972"]
[Black "Vegan4future"]
[Result "0-1"]
[WhiteElo "2064"]
[BlackElo "2389"]
[TimeControl "180+1"]
[EndTime "12:16:42 PDT"]
[Termination "Vegan4future won on time"]

1. d4 {[%clk 0:03:00.9]} 1... Nf6 {[%clk 0:02:59.6]} 2. c4 {[%clk 0:03:00.4]}
2... g6 {[%clk 0:03:00]} 3. Nc3 {[%clk 0:02:58]} 3... Bg7 {[%clk 0:03:00.1]} 4.
e4 {[%clk 0:02:57.8]} 4... d6 {[%clk 0:03:00.4]} 5. Nf3 {[%clk 0:02:57.7]} 5...
O-O {[%clk 0:03:00.7]} 6. Be2 {[%clk 0:02:57.6]} 6... e5 {[%clk 0:03:00.8]} 7.
O-O {[%clk 0:02:57.5]} 7... Nc6 {[%clk 0:03:00.6]} 8. d5 {[%clk 0:02:57.7]} 8...
Ne7 {[%clk 0:03:01.1]} 9. Nd2 {[%clk 0:02:57.6]} 9... Nd7 {[%clk 0:02:56.7]} 10.
b4 {[%clk 0:02:55.6]} 10... a5 {[%clk 0:02:56.2]} 11. bxa5 {[%clk 0:02:52.8]}
11... c5 {[%clk 0:02:54.8]} 12. Nb3 {[%clk 0:02:41.4]} 12... f5 {[%clk
0:02:53.5]} 13. f3 {[%clk 0:02:37.3]} 13... f4 {[%clk 0:02:53.3]} 14. Nb5 {[%clk
0:02:18.9]} 14... Nf6 {[%clk 0:02:52.6]} 15. Bd2 {[%clk 0:02:04]} 15... g5
{[%clk 0:02:52.3]} 16. Bc3 {[%clk 0:01:36.6]} 16... h5 {[%clk 0:02:51.6]} 17.
Rc1 {[%clk 0:01:09.8]} 17... Ng6 {[%clk 0:02:51.4]} 18. Bb2 {[%clk 0:01:05.6]}
18... g4 {[%clk 0:02:50.1]} 19. Ba3 {[%clk 0:00:51.4]} 19... Rf7 {[%clk
0:02:50]} 20. Nxd6 {[%clk 0:00:49.2]} 20... Qxd6 {[%clk 0:02:50.4]} 21. Bxc5
{[%clk 0:00:49]} 21... Qd8 {[%clk 0:02:49.6]} 22. Bb6 {[%clk 0:00:48.5]} 22...
Qe8 {[%clk 0:02:46.1]} 23. c5 {[%clk 0:00:46.2]} 23... Bf8 {[%clk 0:02:44.1]}
24. d6 {[%clk 0:00:41.6]} 24... g3 {[%clk 0:02:42.9]} 25. h3 {[%clk 0:00:41.4]}
25... Be6 {[%clk 0:02:40.8]} 26. Bc4 {[%clk 0:00:35]} 26... Kh7 {[%clk
0:02:37.4]} 27. Bxe6 {[%clk 0:00:30.5]} 27... Qxe6 {[%clk 0:02:38.3]} 28. Nd2
{[%clk 0:00:30.4]} 28... Nh4 {[%clk 0:02:34.5]} 29. Nb1 {[%clk 0:00:25.1]} 29...
Kh6 {[%clk 0:02:32.3]} 30. Nc3 {[%clk 0:00:07.8]} 30... Nh7 {[%clk 0:02:32.3]}
31. Nb5 {[%clk 0:00:08.7]} 31... Ng5 {[%clk 0:02:26.6]} 32. Nc7 {[%clk
0:00:08.5]} 32... Nxh3+ {[%clk 0:02:26.6]} 33. gxh3 {[%clk 0:00:08.6]} 33...
Qxh3 {[%clk 0:02:27.5]} 34. Qd2 {[%clk 0:00:07.5]} 34... g2 {[%clk 0:02:23.4]}
35. Kf2 {[%clk 0:00:00.5]} 35... Qxf3+ {[%clk 0:02:17.4]} 0-1

[Event "*** Titled Tuesday Blitz"]
[Site "Chess.com"]
[Date "2020.05.19"]
[Round "2"]
[White "SARGISMV"]
[Black "RobPeresian"]
[Result "0-1"]
[WhiteElo "2450"]
[BlackElo "2289"]
[TimeControl "180+1"]
[EndTime "12:16:45 PDT"]
[Termination "RobPeresian won by checkmate"]

1. Nf3 {[%clk 0:03:00.9]} 1... d5 {[%clk 0:02:59.6]} 2. c4 {[%clk 0:03:00.5]}
2... c6 {[%clk 0:02:59.2]} 3. e3 {[%clk 0:03:00.4]} 3... Nf6 {[%clk 0:02:58.8]}
4. Nc3 {[%clk 0:03:00.4]} 4... a6 {[%clk 0:02:52.6]} 5. b3 {[%clk 0:02:58.8]}
5... Bf5 {[%clk 0:02:50]} 6. Bb2 {[%clk 0:02:54]} 6... h6 {[%clk 0:02:50]} 7.
Be2 {[%clk 0:02:52.4]} 7... e6 {[%clk 0:02:50.3]} 8. O-O {[%clk 0:02:52.1]} 8...
Nbd7 {[%clk 0:02:46.5]} 9. d3 {[%clk 0:02:51.7]} 9... Be7 {[%clk 0:02:41]} 10.
Rc1 {[%clk 0:02:51.6]} 10... O-O {[%clk 0:02:36.1]} 11. Rc2 {[%clk 0:02:51.8]}
11... Bh7 {[%clk 0:02:33.1]} 12. Qa1 {[%clk 0:02:51.3]} 12... a5 {[%clk
0:02:31.2]} 13. Rd1 {[%clk 0:02:48.1]} 13... Bd6 {[%clk 0:02:22.8]} 14. h3
{[%clk 0:02:31.8]} 14... Qe7 {[%clk 0:02:22.9]} 15. a3 {[%clk 0:02:18.4]} 15...
Rfd8 {[%clk 0:02:22.4]} 16. Rcd2 {[%clk 0:02:18.2]} 16... Nc5 {[%clk 0:02:13.4]}
17. Qa2 {[%clk 0:02:07.1]} 17... a4 {[%clk 0:02:03.7]} 18. b4 {[%clk 0:01:23]}
18... Nb3 {[%clk 0:02:03.8]} 19. c5 {[%clk 0:01:23.3]} 19... Nxd2 {[%clk
0:01:58.2]} 20. Rxd2 {[%clk 0:01:15.1]} 20... Bc7 {[%clk 0:01:54.9]} 21. Bd1
{[%clk 0:01:01.4]} 21... e5 {[%clk 0:01:50.4]} 22. Nxa4 {[%clk 0:00:50.9]} 22...
e4 {[%clk 0:01:40.8]} 23. dxe4 {[%clk 0:00:50.8]} 23... Nxe4 {[%clk 0:01:37.9]}
24. Rd4 {[%clk 0:00:34.1]} 24... Re8 {[%clk 0:01:27]} 25. Nc3 {[%clk 0:00:31.9]}
25... Nxf2 {[%clk 0:01:23.5]} 26. Kxf2 {[%clk 0:00:28.1]} 26... Qxe3+ {[%clk
0:01:22.4]} 27. Kf1 {[%clk 0:00:28]} 27... Bg3 {[%clk 0:01:20.7]} 28. Rd2 {[%clk
0:00:24.5]} 28... Qe1+ {[%clk 0:01:20.3]} 29. Nxe1 {[%clk 0:00:23.1]} 29...
Rxe1# {[%clk 0:01:21.2]} 0-1

[Event "*** Titled Tuesday Blitz"]
[Site "Chess.com"]
[Date "2020.05.19"]
[Round "2"]
[White "Mykola-Bortnyk"]
[Black "eightbyeightchess"]
[Result "1-0"]
[WhiteElo "2883"]
[BlackElo "2548"]
[TimeControl "180+1"]
[EndTime "12:16:47 PDT"]
[Termination "Mykola-Bortnyk won by resignation"]

1. e4 {[%clk 0:03:00.9]} 1... e6 {[%clk 0:02:59.2]} 2. c4 {[%clk 0:02:58.7]}
2... d5 {[%clk 0:02:58.6]} 3. cxd5 {[%clk 0:02:58.1]} 3... exd5 {[%clk
0:02:59.5]} 4. e5 {[%clk 0:02:58.7]} 4... c5 {[%clk 0:02:59.2]} 5. Nf3 {[%clk
0:02:56]} 5... Nc6 {[%clk 0:02:59.2]} 6. Bb5 {[%clk 0:02:55.7]} 6... Ne7 {[%clk
0:02:53.8]} 7. d4 {[%clk 0:02:52.9]} 7... a6 {[%clk 0:02:37.7]} 8. Be2 {[%clk
0:02:52.4]} 8... cxd4 {[%clk 0:02:28.2]} 9. Nxd4 {[%clk 0:02:45.6]} 9... Nxe5
{[%clk 0:02:26.5]} 10. O-O {[%clk 0:02:44.2]} 10... N7c6 {[%clk 0:02:22.3]} 11.
Nc3 {[%clk 0:02:42.8]} 11... Be7 {[%clk 0:02:21.1]} 12. Bf4 {[%clk 0:02:40.7]}
12... Ng6 {[%clk 0:02:15.8]} 13. Bg3 {[%clk 0:02:33.6]} 13... O-O {[%clk
0:02:14.7]} 14. Bf3 {[%clk 0:02:28]} 14... Bf6 {[%clk 0:02:11.6]} 15. Nb3 {[%clk
0:02:26]} 15... d4 {[%clk 0:02:07.6]} 16. Nd5 {[%clk 0:02:26]} 16... Be6 {[%clk
0:01:47]} 17. Nc7 {[%clk 0:02:14.6]} 17... Bxb3 {[%clk 0:01:40.5]} 18. Qxb3
{[%clk 0:02:14.2]} 18... Rc8 {[%clk 0:01:40.5]} 19. Qxb7 {[%clk 0:02:07.5]}
19... Nce5 {[%clk 0:01:39.3]} 20. Nxa6 {[%clk 0:02:03.1]} 20... Nxf3+ {[%clk
0:01:33.6]} 21. Qxf3 {[%clk 0:01:55.1]} 21... Qb6 {[%clk 0:01:33.4]} 22. Qd3
{[%clk 0:01:43.6]} 22... Qxb2 {[%clk 0:01:31.9]} 23. Nc7 {[%clk 0:01:34.5]}
23... Ne5 {[%clk 0:00:57.7]} 24. Bxe5 {[%clk 0:01:32.4]} 24... Bxe5 {[%clk
0:00:58.6]} 25. Nd5 {[%clk 0:01:33.1]} 25... Rfe8 {[%clk 0:00:50.5]} 26. a4
{[%clk 0:01:19.9]} 26... Qb7 {[%clk 0:00:44.6]} 27. Qf3 {[%clk 0:01:13.3]} 27...
Rcd8 {[%clk 0:00:40.3]} 28. Nf6+ {[%clk 0:01:12.8]} 28... Bxf6 {[%clk
0:00:38.3]} 29. Qxb7 {[%clk 0:01:13.7]} 29... d3 {[%clk 0:00:39.2]} 30. Rad1
{[%clk 0:01:12.8]} 1-0

[Event "*** Titled Tuesday Blitz"]
[Site "Chess.com"]
[Date "2020.05.19"]
[Round "2"]
[White "Mashenka97"]
[Black "Shahinyan_ChessMood"]
[Result "0-1"]
[WhiteElo "2354"]
[BlackElo "2659"]
[TimeControl "180+1"]
[EndTime "12:16:48 PDT"]
[Termination "Shahinyan_ChessMood won by resignation"]

1. e4 {[%clk 0:03:00.9]} 1... e6 {[%clk 0:02:45.7]} 2. d4 {[%clk 0:02:59.6]}
2... d5 {[%clk 0:02:46.6]} 3. Nc3 {[%clk 0:02:58.9]} 3... Bb4 {[%clk 0:02:39.1]}
4. e5 {[%clk 0:02:57]} 4... c5 {[%clk 0:02:39.2]} 5. Bd2 {[%clk 0:02:54.4]} 5...
Ne7 {[%clk 0:02:37.8]} 6. a3 {[%clk 0:02:45.7]} 6... Bxc3 {[%clk 0:02:36.4]} 7.
Bxc3 {[%clk 0:02:43.3]} 7... cxd4 {[%clk 0:02:32.8]} 8. Qxd4 {[%clk 0:02:39.7]}
8... Nbc6 {[%clk 0:02:33.7]} 9. Qg4 {[%clk 0:02:38.4]} 9... O-O {[%clk
0:02:29.2]} 10. O-O-O {[%clk 0:02:35.6]} 10... Nf5 {[%clk 0:02:10.5]} 11. Bd3
{[%clk 0:02:28.7]} 11... d4 {[%clk 0:02:06.1]} 12. Bxf5 {[%clk 0:02:17.3]} 12...
exf5 {[%clk 0:02:07]} 13. Qf4 {[%clk 0:01:54.4]} 13... Qd5 {[%clk 0:01:54.9]}
14. Bxd4 {[%clk 0:01:32.3]} 14... Qa2 {[%clk 0:01:53.3]} 15. Nf3 {[%clk
0:01:18.1]} 15... Rd8 {[%clk 0:01:45.7]} 16. b3 {[%clk 0:01:08.5]} 16... Nxd4
{[%clk 0:01:41.1]} 17. Rxd4 {[%clk 0:01:04.8]} 17... Be6 {[%clk 0:01:30.8]} 18.
Rhd1 {[%clk 0:00:55]} 18... Rdc8 {[%clk 0:01:15.3]} 19. Ne1 {[%clk 0:00:32]}
19... Bxb3 {[%clk 0:01:04.5]} 20. Qxf5 {[%clk 0:00:22.3]} 20... Qa1+ {[%clk
0:01:04.1]} 0-1

[Event "*** Titled Tuesday Blitz"]
[Site "Chess.com"]
[Date "2020.05.19"]
[Round "2"]
[White "ChronicUnhappiness"]
[Black "1977Ivan"]
[Result "0-1"]
[WhiteElo "2288"]
[BlackElo "2617"]
[TimeControl "180+1"]
[EndTime "12:16:51 PDT"]
[Termination "1977Ivan won by resignation"]

1. c4 {[%clk 0:03:00.9]} 1... e5 {[%clk 0:02:54.3]} 2. Nc3 {[%clk 0:02:59.3]}
2... Bb4 {[%clk 0:02:52.2]} 3. Nd5 {[%clk 0:02:53.6]} 3... Bc5 {[%clk
0:02:52.1]} 4. g3 {[%clk 0:02:47.7]} 4... c6 {[%clk 0:02:50.1]} 5. Nc3 {[%clk
0:02:46.8]} 5... d5 {[%clk 0:02:49.2]} 6. cxd5 {[%clk 0:02:37.3]} 6... cxd5
{[%clk 0:02:50.1]} 7. Bg2 {[%clk 0:02:37.4]} 7... Nf6 {[%clk 0:02:50.3]} 8. d3
{[%clk 0:02:32.4]} 8... O-O {[%clk 0:02:49.3]} 9. Nf3 {[%clk 0:02:32]} 9... Nc6
{[%clk 0:02:42.6]} 10. O-O {[%clk 0:02:30.5]} 10... h6 {[%clk 0:02:42.2]} 11. a3
{[%clk 0:02:26.3]} 11... d4 {[%clk 0:02:35.9]} 12. Na4 {[%clk 0:02:04.2]} 12...
Bd6 {[%clk 0:02:29.8]} 13. b4 {[%clk 0:02:03.7]} 13... Be6 {[%clk 0:02:28.1]}
14. Nd2 {[%clk 0:02:00.6]} 14... Bd5 {[%clk 0:02:24.5]} 15. Bxd5 {[%clk
0:01:30]} 15... Nxd5 {[%clk 0:02:23.9]} 16. b5 {[%clk 0:01:30.1]} 16... Na5
{[%clk 0:02:18]} 17. Nc4 {[%clk 0:01:29.6]} 17... Rc8 {[%clk 0:02:11.2]} 18.
Nxd6 {[%clk 0:01:20.9]} 18... Qxd6 {[%clk 0:02:10.7]} 19. Bd2 {[%clk 0:01:20.9]}
19... Nc3 {[%clk 0:02:10.5]} 20. Bxc3 {[%clk 0:01:00.2]} 20... dxc3 {[%clk
0:02:11.4]} 21. Qc2 {[%clk 0:01:00.3]} 21... Rc7 {[%clk 0:02:08]} 22. Rab1
{[%clk 0:00:58.1]} 22... b6 {[%clk 0:02:05.1]} 23. Rb4 {[%clk 0:00:55]} 23...
Rfc8 {[%clk 0:02:03.7]} 24. e3 {[%clk 0:00:53]} 24... Nb7 {[%clk 0:02:00]} 25.
d4 {[%clk 0:00:48.1]} 25... exd4 {[%clk 0:01:57.8]} 26. exd4 {[%clk 0:00:45.4]}
26... Na5 {[%clk 0:01:56.6]} 27. Rd1 {[%clk 0:00:40]} 27... Qd5 {[%clk
0:01:55.7]} 28. Rd3 {[%clk 0:00:36.1]} 28... Qe4 {[%clk 0:01:53.1]} 29. d5
{[%clk 0:00:33.4]} 29... Qe1+ {[%clk 0:01:50.7]} 30. Kg2 {[%clk 0:00:32.7]}
30... Nc4 {[%clk 0:01:48.5]} 31. Rxc3 {[%clk 0:00:22.9]} 31... Nd2 {[%clk
0:01:37.8]} 32. Qd3 {[%clk 0:00:18.9]} 32... Rxc3 {[%clk 0:01:31.8]} 33. Nxc3
{[%clk 0:00:18.6]} 33... Rxc3 {[%clk 0:01:31.5]} 0-1